fUSD/lending_fUSD_20260218
["ID","MTS","AMOUNT","RATE_DAILY","PERIOD"]
[405870109,1771374638851,-151.0,0.00011119,2]
[405870111,1771374638860,-500.0,0.00011119,2]
[405870113,1771374638869,-151.0,0.00011119,2]
[405870115,1771374638879,-500.0,0.00011119,2]
[405870117,1771374638888,-151.0,0.00011119,2]
[405870119,1771374638897,-500.0,0.00011119,2]
[405870121,1771374638907,-151.0,0.00011119,2]
[405870123,1771374638916,-500.0,0.00011119,2]
[405870125,1771374638925,-151.0,0.00011119,2]
[405870127,1771374638935,-500.0,0.00011119,2]
[405870129,1771374638944,-151.0,0.00011119,2]
[405870131,1771374638954,-500.0,0.00011119,2]
[405870133,1771374638964,-500.0,0.00011119,2]
[405870135,1771374638975,-500.0,0.00011119,2]
[405870137,1771374638985,-500.0,0.00011119,2]
[405870139,1771374638994,-500.0,0.00011119,2]
[405870141,1771374639003,-500.0,0.00011119,2]
[405870143,1771374639013,-500.0,0.00011119,2]
[405870145,1771374639025,-500.0,0.00011119,2]
[405870147,1771374639035,-500.0,0.00011119,2]
[405870149,1771374639044,-500.0,0.00011119,2]
[405870151,1771374639055,-500.0,0.00011119,2]
[405870152,1771374639064,-500.0,0.00011119,2]
[405870154,1771374639073,-500.0,0.00011119,2]
[405870156,1771374639083,-500.0,0.00011119,2]
[405870158,1771374639092,-500.0,0.00011119,2]
[405870160,1771374639102,-151.0,0.00011119,2]
[405870162,1771374639111,-151.0,0.00011119,2]
[405870164,1771374639121,-151.0,0.00011119,2]
[405870166,1771374639130,-151.0,0.00011119,2]
[405870168,1771374639140,-151.0,0.00011119,2]
[405870170,1771374639149,-151.0,0.00011119,2]
[405870172,1771374639158,-151.0,0.00011119,2]
[405870174,1771374639167,-151.0,0.00011119,2]
[405870176,1771374639176,-151.0,0.00011119,2]
[405870178,1771374639185,-151.0,0.00011119,2]
[405870180,1771374639194,-151.0,0.00011119,2]
[405870182,1771374639204,-151.0,0.00011119,2]
[405870184,1771374639213,-151.0,0.00011119,2]
[405870186,1771374639223,-151.0,0.00011119,2]
[405870188,1771374639232,-151.0,0.00011119,2]
[405870190,1771374639242,-151.0,0.00011119,2]
[405870192,1771374639251,-151.0,0.00011119,2]
[405870194,1771374639260,-151.0,0.00011119,2]
[405870196,1771374639269,-151.0,0.00011119,2]
[405870198,1771374639278,-151.0,0.00011119,2]
[405870200,1771374639287,-33297.29814554,0.0001113,2]
[405870201,1771374639297,-1609.95611544,0.00011141,2]
[405870203,1771374639306,-445.0,0.00011158,2]
[405870204,1771374639315,-180.0,0.00011181,2]
[405870206,1771374639324,-156.0,0.00011182,2]
[405870208,1771374639333,-234.07,0.000112,2]
[405870210,1771374639342,-382.0,0.00011203,2]
[405870212,1771374639351,-382.0,0.00011205,2]
[405870213,1771374639360,-298.0,0.00011227,2]
[405870215,1771374639370,-382.0,0.00011241,2]
[405870217,1771374639379,-1009.2,0.00011274,2]
[405870219,1771374639388,-382.0,0.00011302,2]
[405870221,1771374639397,-382.0,0.00011305,2]
[405870223,1771374639406,-382.0,0.00011325,2]
[405870225,1771374639415,-243.72778053,0.00011326,2]
[405870227,1771374639424,-325.51154418,0.00011355,2]
[405870229,1771374639433,-382.0,0.00011359,2]
[405870231,1771374639442,-382.0,0.00011368,2]
[405870232,1771374639451,-382.0,0.00011382,2]
[405870234,1771374639460,-382.0,0.00011398,2]
[405870236,1771374639469,-382.0,0.00011401,2]
[405870238,1771374639478,-2032.5562,0.00011422,2]
[405870240,1771374639487,-33297.29814554,0.00011423,2]
[405870242,1771374639496,-382.0,0.00011428,2]
[405870244,1771374639506,-382.0,0.00011432,2]
[405870246,1771374639515,-382.0,0.00011448,2]
[405870248,1771374639525,-382.0,0.00011461,2]
[405870250,1771374639534,-382.0,0.00011482,2]
[405870251,1771374639543,-151.0,0.00011529,2]
[405870253,1771374639552,-440196.83062151,0.00011532,2]
[405870255,1771374639561,-1009.2,0.00011548,2]
[405870257,1771374639570,-2850.0,0.00011567,2]
[405870259,1771374639579,-154.0,0.00011622,3]
[405870261,1771374639588,-1000.0,0.00011689,2]
[405870263,1771374639597,-150.91,0.000117,2]
[405870265,1771374639606,-33297.29814554,0.00011716,2]
[405870267,1771374639615,-1009.2,0.00011822,2]
[405870268,1771374639624,-6500.0,0.000119,4]
[405870269,1771374639634,-33297.29814554,0.00012009,2]
[405870270,1771374639643,-23006.18,0.00012055,2]
[405870271,1771374639653,-2823.55,0.00012087,2]
[405870273,1771374639662,-1009.2,0.00012096,2]
[405870274,1771374639673,-500.0,0.00012173,2]
[405870275,1771374639682,-500.0,0.00012173,2]
[405870276,1771374639692,-500.0,0.00012173,2]
[405870277,1771374639701,-1066.36814864,0.00012184,2]
[405870278,1771374639710,-33297.29814554,0.00012302,2]
[405870279,1771374639720,-1600.0,0.00012352,2]
[405870280,1771374639729,-1009.2,0.0001237,2]
[405870281,1771374639738,-308.39558699,0.000125,2]
[405870283,1771374639747,-33297.29814554,0.00012595,2]
[405870284,1771374639757,-1009.2,0.00012644,2]
[405870285,1771374639766,-4587.476,0.000127,2]
[405870286,1771374639776,-951.6545,0.000127,2]
[405870287,1771374639786,-1000.0,0.00012721,2]
[405870288,1771374639796,-306.10762696,0.00012721,2]
[405870289,1771374639805,-1000.0,0.00012721,2]
[405870290,1771374639816,-662068.1675,0.00012778,2]
[405870291,1771374639825,-250.0,0.00012817,2]
[405870292,1771374639837,-271.46,0.00012877,2]
[405870293,1771374639847,-33297.29814554,0.00012888,2]
[405870294,1771374639857,-150000.0,0.000129,2]
[405870295,1771374639866,-1009.2,0.00012918,2]
[405870296,1771374639875,-1000.0,0.00012988,2]
[405870297,1771374639884,-5623.26156693,0.00013,2]
[405870298,1771374639893,-5362.79805645,0.0001305,2]
[405870299,1771374639903,-1009.2,0.00013192,2]
[405870300,1771374639913,-1050.0,0.00013203,7]
[405870301,1771374639923,-1500.0,0.00013268,2]
[405870302,1771374639933,-932.93855102,0.00013268,2]
[405870303,1771374639942,-1066.36814864,0.00013327,2]
[405870304,1771374639953,-3240.0,0.00013425,2]
[405870305,1771374639963,-1009.2,0.00013466,2]
[405870306,1771374639977,-1000.0,0.000135,2]
[405870307,1771374639986,-1600.0,0.00013588,2]
[405870308,1771374639996,-500.0,0.00013698,2]
[405870309,1771374640005,-500.0,0.00013698,2]
[405870310,1771374640014,-712.99,0.00013699,2]
[405870311,1771374640023,-752.67,0.00013699,2]
[405870312,1771374640032,-200.0,0.00013699,2]
[405870313,1771374640044,-173.57638878,0.00013716,2]
[405870314,1771374640053,-160.0,0.00013716,2]
[405870315,1771374640063,-1009.2,0.0001374,2]
[405870316,1771374640072,-2000.0,0.00013816,2]
[405870317,1771374640081,-157.72795359,0.00013873,2]
[405870318,1771374640091,-290.99134182,0.00013873,2]
[405870319,1771374640100,-523.64780308,0.00013873,2]
[405870320,1771374640109,-500.0,0.00013873,2]
[405870321,1771374640118,-500.0,0.00013873,2]
[405870322,1771374640127,-377.76526068,0.00013873,2]
[405870323,1771374640137,-500.0,0.00013873,2]
[405870324,1771374640145,-285.23122629,0.00013873,2]
[405870325,1771374640154,-1500.0,0.00014,2]
[405870326,1771374640164,-1009.20002581,0.00014014,2]
[405870327,1771374640172,-32850.4601,0.00014033,2]
[405870328,1771374640182,-259.7041,0.00014033,2]
[405870329,1771374640192,-1000.0,0.00014033,2]
[405870330,1771374640202,-7513.00308234,0.00014068,2]
[405870331,1771374640211,-557.45332478,0.00014068,2]
[405870332,1771374640478,-2162.4795237,0.00014068,2]
[405870333,1771374640488,-1000.0,0.00014286,2]
[405870334,1771374640497,-2238.87048767,0.00014364,2]
[405870336,1771374640507,-10349.13153648,0.0001439,2]
[405870337,1771374640516,-1000.0,0.00014421,2]
[405870338,1771374640524,-1000.0,0.00014421,2]
[405870339,1771374640533,-1000.0,0.00014421,2]
[405870340,1771374640542,-1066.36814864,0.00014471,2]
[405870341,1771374640551,-201.13798814,0.00014661,2]
[405870342,1771374640560,-1600.0,0.00014823,2]
[405870343,1771374640569,-521.94919855,0.00014968,2]
[405870344,1771374640578,-240.67806815,0.00014968,2]
[405870345,1771374640587,-505.49608217,0.00014968,2]
[405870346,1771374640596,-250.0,0.00015,2]
[405870347,1771374640605,-2055.50045313,0.00015,2]
[405870348,1771374640614,-8002.23365242,0.00015,2]
[405870349,1771374640623,-151.76907395,0.00015,2]
[405870350,1771374640631,-900.0,0.00015068,2]
[405870351,1771374640640,-1517.64,0.000153,2]
[405870352,1771374640649,-509.61038486,0.000154,2]
[405870353,1771374640658,-1000.0,0.00015585,2]
[405870354,1771374640666,-1066.36814864,0.00015614,2]
[405870355,1771374640675,-2245.73805852,0.00015807,2]
[405870356,1771374640684,-481.75678797,0.00015827,2]
[405870357,1771374640693,-481.75678796,0.00015827,2]
[405870358,1771374640702,-1041.90059302,0.0001596,2]
[405870359,1771374640712,-173.57638878,0.00016,3]
[405870360,1771374640723,-418.83903334,0.00016,2]
[405870361,1771374640732,-1500.0,0.00016082,2]
[405870362,1771374640740,-9999.99,0.00016116,2]
[405870363,1771374640750,-150.0,0.000162,2]
[405870364,1771374640759,-82407.95534639,0.000162,5]
[405870365,1771374640768,-481.75678797,0.00016223,2]
[405870366,1771374640776,-200.0,0.0001634,2]
[405870367,1771374640786,-500.0,0.00016356,2]
[405870368,1771374640795,-500.0,0.00016356,2]
[405870369,1771374640804,-174.61919141,0.00016375,2]
[405870370,1771374640814,-151.0,0.00016375,2]
[405870371,1771374640823,-151.0,0.00016375,2]
[405870372,1771374640832,-151.0,0.00016375,2]
[405870373,1771374640841,-261.90795033,0.00016375,2]
[405870374,1771374640850,-200.0,0.00016375,2]
[405870375,1771374640859,-721.12765535,0.00016375,2]
[405870376,1771374640869,-250.0,0.00016375,2]
[405870377,1771374640878,-250.0,0.00016375,2]
[405870378,1771374640887,-250.0,0.00016375,2]
[405870379,1771374640895,-202.11690686,0.00016375,2]
[405870380,1771374640904,-500.0,0.00016375,2]
[405870381,1771374640914,-500.0,0.00016375,2]
[405870382,1771374640924,-500.0,0.00016375,2]
[405870383,1771374640933,-500.0,0.00016375,2]
[405870384,1771374640942,-500.0,0.00016375,2]
[405870385,1771374640951,-500.0,0.00016375,2]
[405870386,1771374640960,-500.0,0.00016375,2]
[405870387,1771374640972,-500.0,0.00016375,2]
[405870388,1771374640982,-500.0,0.00016375,2]
[405870389,1771374640992,-500.0,0.00016375,2]
[405870390,1771374641001,-500.0,0.00016375,2]
[405870391,1771374641010,-250.0,0.00016375,2]
[405870392,1771374641021,-151.0,0.00016375,2]
[405870393,1771374641030,-500.0,0.00016375,2]
[405870394,1771374641040,-250.0,0.00016375,2]
[405870395,1771374641051,-500.0,0.00016375,2]
[405870396,1771374641060,-250.0,0.00016375,2]
[405870397,1771374641069,-500.0,0.00016375,2]
[405870398,1771374641078,-250.0,0.00016375,2]
[405870399,1771374641087,-500.0,0.00016375,2]
[405870400,1771374641096,-250.0,0.00016375,2]
[405870401,1771374641105,-500.0,0.00016375,2]
[405870402,1771374641115,-250.0,0.00016375,2]
[405870403,1771374641123,-500.0,0.00016375,2]
[405870404,1771374641133,-250.0,0.00016375,2]
[405870405,1771374641142,-500.0,0.00016375,2]
[405870406,1771374641151,-250.0,0.00016375,2]
[405870407,1771374641160,-500.0,0.00016375,2]
[405870408,1771374641170,-250.0,0.00016375,2]
[405870409,1771374641179,-250.0,0.00016375,2]
[405870410,1771374641188,-500.0,0.00016375,2]
[405870411,1771374641198,-250.0,0.00016375,2]
[405870412,1771374641207,-250.0,0.00016375,2]
[405870413,1771374641216,-250.0,0.00016375,2]
[405870414,1771374641225,-250.0,0.00016375,2]
[405870415,1771374641234,-250.0,0.00016375,2]
[405870416,1771374641243,-693.3919763,0.00016375,2]
[405870417,1771374641253,-250.0,0.00016375,2]
[405870418,1771374641264,-743.50770149,0.00016375,2]
[405870419,1771374641279,-250.0,0.00016375,2]
[405870420,1771374641289,-250.0,0.00016375,2]
[405870421,1771374641298,-250.0,0.00016375,2]
[405870422,1771374641308,-250.0,0.00016375,2]
[405870423,1771374641319,-250.0,0.00016375,2]
[405870424,1771374641329,-250.0,0.00016375,2]
[405870425,1771374641340,-250.0,0.00016375,2]
[405870426,1771374641350,-250.0,0.00016375,2]
[405870427,1771374641359,-250.0,0.00016375,2]
[405870428,1771374641368,-250.0,0.00016375,2]
[405870429,1771374641379,-250.0,0.00016375,2]
[405870430,1771374641389,-250.0,0.00016375,2]
[405870431,1771374641398,-250.0,0.00016375,2]
[405870432,1771374641407,-250.0,0.00016375,2]
[405870433,1771374641416,-250.0,0.00016375,2]
[405870434,1771374641426,-279.55615727,0.00016375,2]
[405870435,1771374641437,-277.35679052,0.00016375,2]
[405870436,1771374641447,-151.0,0.0001643,2]
[405870437,1771374641459,-719.04747942,0.0001643,2]
[405870438,1771374641469,-2557.4,0.00016438,2]
[405870439,1771374641478,-841.0,0.00016438,2]
[405870440,1771374641487,-900.0,0.00016438,2]
[405870441,1771374641496,-151.0,0.00016485,2]
[405870442,1771374641506,-745.65223616,0.00016485,2]
[405870443,1771374641515,-2000.0,0.000165,2]
[405870444,1771374641524,-151.0,0.0001654,2]
[405870445,1771374641533,-773.2413689,0.0001654,2]
[405870446,1771374641543,-151.0,0.00016595,2]
[405870447,1771374641555,-801.85129955,0.00016595,2]
[405870448,1771374641564,-361.51972399,0.000166,2]
[405870449,1771374641573,-500.0,0.00016644,2]
[405870450,1771374641582,-500.0,0.00016644,2]
[405870451,1771374641591,-831.51979763,0.0001665,2]
[405870452,1771374641600,-862.28603014,0.00016705,2]
[405870453,1771374641608,-841.0,0.00016712,2]
[405870454,1771374641617,-956.0,0.0001672,2]
[405870455,1771374641627,-856.0,0.0001672,2]
[405870456,1771374641636,-1000.0,0.00016726,2]
[405870457,1771374641645,-1000.0,0.00016739,2]
[405870458,1771374641654,-1066.36814864,0.00016757,2]
[405870459,1771374641663,-894.19061326,0.0001676,2]
[405870460,1771374641672,-927.27566595,0.00016815,2]
[405870461,1771374641681,-279.0,0.00016834,2]
[405870462,1771374641690,-961.58486559,0.0001687,2]
[405870463,1771374641699,-600.0,0.000169,6]
[405870464,1771374641708,-181.08010149,0.00016923,2]
[405870465,1771374641717,-200.0,0.00016923,2]
[405870466,1771374641726,-771.01748645,0.00016923,2]
[405870467,1771374641735,-287.61899177,0.00016923,2]
[405870468,1771374641745,-997.16350561,0.00016925,2]
[405870469,1771374641754,-152.0,0.00016963,3]
[405870470,1771374641763,-841.0,0.00016986,2]
[405870471,1771374641772,-1053.84594191,0.0001699,2]
[405870472,1771374641782,-151.0,0.00016997,2]
[405870473,1771374641791,-300.0,0.00017,2]
[405870474,1771374641800,-810378.15806059,0.00017,2]
[405870475,1771374642006,-4353.0468707,0.00017,2]
[405870476,1771374642027,-506.37642362,0.00017,2]
[405870477,1771374642067,-90138.42393929,0.00017,2]
[405870478,1771374642081,-11648.69454725,0.00017,2]
[405870479,1771374642096,-1221.1636,0.00017,2]
[405870480,1771374642107,-619.10896422,0.00017,2]
[405870481,1771374642118,-276.871998,0.00017,2]
[405870482,1771374642130,-265.96,0.00017,2]
[405870507,1771374643241,-373.27000001,0.0001133,2]
[405870508,1771374643416,-360.45724093,0.0001133,2]
[405870509,1771374643426,-714.77934254,0.00017,2]
[405870512,1771374643532,-0.49904491,0.00017,2]
[405870525,1771374645812,-27321.18890458,0.00017,2]
[405870528,1771374645830,-726.65367492,0.00017,2]
[405870532,1771374645925,-767.04076529,0.00017,2]
[405870533,1771374645937,-1698.39954331,0.00017,2]
[405870534,1771374646049,-652.882568,0.00017,2]
[405870535,1771374646060,-845.0,0.00017,2]
[405870541,1771374662259,4000.0,0.00019,120]
[405870554,1771374800788,3000.0,0.00019,120]
[405870555,1771374825715,3000.0,0.00019,120]
[405870556,1771374934447,3000.0,0.00019,120]
[405870577,1771375832051,-1287.55,8.639e-05,2]
[405870578,1771375832061,-1852.42,8.653e-05,2]
[405870579,1771375832071,-2200.0,8.7e-05,3]
[405870580,1771375832080,-1200.0,8.799e-05,2]
[405870581,1771375832090,-4500.0,8.8e-05,3]
[405870582,1771375832099,-300.0,8.809e-05,2]
[405870583,1771375832109,-500.0,8.81e-05,2]
[405870584,1771375832118,-200.0,8.851e-05,2]
[405870585,1771375832128,-6800.0,8.9e-05,3]
[405870586,1771375832137,-500.0,8.948e-05,2]
[405870587,1771375832146,-151.0,8.959e-05,2]
[405870588,1771375832156,-155.25349545,8.967e-05,2]
[405870589,1771375832165,-500.0,8.967e-05,2]
[405870590,1771375832175,-313.65581747,8.967e-05,2]
[405870591,1771375832184,-397.02555891,8.967e-05,2]
[405870592,1771375832194,-500.0,8.967e-05,2]
[405870593,1771375832203,-500.0,8.967e-05,2]
[405870594,1771375832213,-500.0,8.967e-05,2]
[405870595,1771375832222,-500.0,8.967e-05,2]
[405870596,1771375832232,-500.0,8.967e-05,2]
[405870597,1771375832241,-504.90627517,8.967e-05,2]
[405870598,1771375832251,-500.0,8.967e-05,2]
[405870599,1771375832260,-500.0,8.967e-05,2]
[405870600,1771375832269,-150.0,8.967e-05,2]
[405870601,1771375832279,-3036.80170312,8.968e-05,2]
[405870603,1771375832320,-293.48857706,8.968e-05,2]
[405870604,1771375832332,-1691.67677193,8.968e-05,2]
[405870605,1771375832359,-956.29286277,8.968e-05,2]
[405870606,1771375832370,-394.17718249,8.968e-05,2]
[405870611,1771375838246,-151.0,8.965e-05,2]
[405870612,1771375838256,-151.0,8.965e-05,2]
[405870613,1771375838266,-134.75223375,8.968e-05,2]
[405870614,1771375838406,-3493492.81066888,8.968e-05,2]
[405870615,1771375838416,-4129.358,8.968e-05,2]
[405870616,1771375838425,-38875.7493,8.968e-05,2]
[405870617,1771375838435,-2500.0,8.968e-05,2]
[405870618,1771375838443,-6737.6189,8.968e-05,2]
[405870619,1771375838453,-151.9048494,8.968e-05,2]
[405870620,1771375838462,-9100.0,9e-05,3]
[405870621,1771375838474,-277.0,9.035e-05,2]
[405870622,1771375838483,-239.0,9.053e-05,2]
[405870623,1771375838492,-2850.0,9.067e-05,2]
[405870624,1771375838501,-13062.74,9.068e-05,2]
[405870625,1771375838510,-9999.99,9.068e-05,2]
[405870626,1771375838522,-462.0,9.071e-05,2]
[405870627,1771375838531,-230.99,9.1e-05,2]
[405870628,1771375838540,-9999.99,9.167e-05,2]
[405870629,1771375838552,-150.99,9.167e-05,2]
[405870630,1771375838562,-9999.99,9.167e-05,2]
[405870632,1771375838571,-150.99,9.167e-05,2]
[405870634,1771375838581,-15798.07,9.168e-05,2]
[405870636,1771375838590,-9999.99,9.168e-05,2]
[405870638,1771375838599,-999.99,9.168e-05,2]
[405870640,1771375838609,-499.99,9.168e-05,2]
[405870642,1771375838618,-9999.99,9.168e-05,2]
[405870672,1771375838627,-299.99,9.168e-05,2]
[405870673,1771375838933,-150.0,9.352e-05,3]
[405870674,1771375838943,-500.0,9.352e-05,3]
[405870675,1771375838952,-500.0,9.352e-05,3]
[405870676,1771375838962,-500.0,9.352e-05,3]
[405870677,1771375838971,-500.0,9.352e-05,3]
[405870678,1771375838980,-150.0,9.352e-05,3]
[405870679,1771375838989,-500.0,9.352e-05,3]
[405870680,1771375838999,-500.0,9.352e-05,3]
[405870681,1771375839009,-500.0,9.352e-05,3]
[405870682,1771375839019,-500.0,9.352e-05,3]
[405870683,1771375839028,-150.0,9.352e-05,2]
[405870684,1771375839038,-150.0,9.352e-05,2]
[405870686,1771375839047,-150.0,9.352e-05,2]
[405870687,1771375839056,-500.0,9.352e-05,3]
[405870689,1771375839066,-150.31509327,9.352e-05,3]
[405870691,1771375839075,-500.0,9.352e-05,3]
[405870693,1771375839084,-150.0,9.352e-05,3]
[405870695,1771375839094,-500.0,9.352e-05,3]
[405870697,1771375839104,-500.0,9.352e-05,2]
[405870699,1771375839114,-151.2254874,9.407e-05,3]
[405870701,1771375839123,-500.0,9.407e-05,3]
[405870703,1771375839139,-500.0,9.407e-05,3]
[405870705,1771375839151,-500.0,9.407e-05,3]
[405870707,1771375839161,-500.0,9.407e-05,3]
[405870709,1771375839170,-150.07216309,9.407e-05,3]
[405870711,1771375839180,-500.0,9.407e-05,3]
[405870713,1771375839190,-500.0,9.407e-05,3]
[405870715,1771375839200,-500.0,9.407e-05,3]
[405870717,1771375839209,-500.0,9.407e-05,3]
[405870719,1771375839219,-500.0,9.407e-05,3]
[405870721,1771375839229,-500.0,9.407e-05,3]
[405870723,1771375839238,-150.0,9.407e-05,3]
[405870725,1771375839248,-500.0,9.407e-05,3]
[405870727,1771375839258,-500.0,9.462e-05,3]
[405870729,1771375839268,-500.0,9.462e-05,3]
[405870731,1771375839278,-500.0,9.462e-05,3]
[405870733,1771375839288,-500.0,9.462e-05,3]
[405870735,1771375839297,-537.18600864,9.462e-05,3]
[405870737,1771375839306,-500.0,9.462e-05,3]
[405870739,1771375839316,-500.0,9.462e-05,3]
[405870741,1771375839329,-500.0,9.462e-05,3]
[405870744,1771375839339,-500.0,9.462e-05,3]
[405870746,1771375839349,-500.0,9.462e-05,3]
[405870748,1771375839358,-201.09695119,9.462e-05,3]
[405870750,1771375839367,-500.0,9.462e-05,3]
[405870752,1771375839376,-193.0,9.502e-05,2]
[405870754,1771375839385,-250.0,9.502e-05,2]
[405870756,1771375839395,-250.0,9.502e-05,2]
[405870757,1771375839404,-500.0,9.516e-05,3]
[405870759,1771375839413,-500.0,9.516e-05,3]
[405870762,1771375839424,-500.0,9.516e-05,3]
[405870763,1771375839433,-500.0,9.516e-05,3]
[405870766,1771375839443,-500.0,9.516e-05,3]
[405870768,1771375839452,-500.0,9.516e-05,3]
[405870770,1771375839462,-500.0,9.516e-05,3]
[405870772,1771375839473,-500.0,9.516e-05,3]
[405870774,1771375839483,-500.0,9.516e-05,3]
[405870776,1771375839493,-500.0,9.516e-05,3]
[405870778,1771375839502,-250.0,9.519e-05,2]
[405870780,1771375839511,-7742.069,9.531e-05,2]
[405870782,1771375839522,-746.846,9.531e-05,2]
[405870784,1771375839531,-500.0,9.571e-05,3]
[405870786,1771375839540,-500.0,9.571e-05,3]
[405870788,1771375839551,-500.0,9.571e-05,3]
[405870790,1771375839561,-500.0,9.571e-05,3]
[405870791,1771375839570,-500.0,9.571e-05,3]
[405870794,1771375839580,-500.0,9.571e-05,3]
[405870796,1771375839590,-500.0,9.571e-05,3]
[405870797,1771375839599,-500.0,9.571e-05,3]
[405870799,1771375839609,-500.0,9.571e-05,3]
[405870802,1771375839618,-500.0,9.571e-05,3]
[405870803,1771375839628,-500.0,9.626e-05,3]
[405870806,1771375839637,-500.0,9.626e-05,3]
[405870808,1771375839647,-500.0,9.626e-05,3]
[405870810,1771375839656,-500.0,9.626e-05,3]
[405870812,1771375839665,-500.0,9.626e-05,3]
[405870814,1771375839674,-500.0,9.626e-05,3]
[405870816,1771375839683,-500.0,9.626e-05,3]
[405870818,1771375839692,-500.0,9.626e-05,3]
[405870820,1771375839701,-500.0,9.626e-05,3]
[405870822,1771375839710,-500.33776257,9.626e-05,3]
[405870824,1771375839719,-500.0,9.626e-05,3]
[405870825,1771375839728,-150.0,9.626e-05,3]
[405870827,1771375839738,-150.0,9.626e-05,3]
[405870829,1771375839746,-500.0,9.626e-05,3]
[405870831,1771375839756,-150.0,9.626e-05,3]
[405870833,1771375839765,-500.0,9.626e-05,3]
[405870835,1771375839775,-500.0,9.626e-05,3]
[405870837,1771375839785,-500.0,9.626e-05,3]
[405870840,1771375839794,-150.0,9.626e-05,3]
[405870841,1771375839804,-150.0,9.626e-05,3]
[405870843,1771375839813,-150.0,9.626e-05,3]
[405870845,1771375839823,-150.0,9.626e-05,3]
[405870847,1771375839833,-500.0,9.626e-05,3]
[405870850,1771375839842,-150.0,9.626e-05,3]
[405870852,1771375839852,-500.0,9.626e-05,3]
[405870854,1771375839861,-500.0,9.626e-05,3]
[405870856,1771375839870,-500.0,9.626e-05,3]
[405870858,1771375839879,-500.0,9.626e-05,3]
[405870860,1771375839888,-500.0,9.626e-05,3]
[405870862,1771375839897,-500.0,9.626e-05,3]
[405870864,1771375839906,-500.0,9.626e-05,3]
[405870866,1771375839915,-500.0,9.626e-05,3]
[405870868,1771375839924,-150.0,9.626e-05,3]
[405870870,1771375839933,-150.0,9.626e-05,2]
[405870872,1771375839942,-237.28842339,9.626e-05,3]
[405870874,1771375839951,-214.0121963,9.626e-05,3]
[405870876,1771375839960,-500.0,9.626e-05,3]
[405870878,1771375839969,-500.0,9.626e-05,3]
[405870880,1771375839978,-500.0,9.626e-05,2]
[405870882,1771375839987,-300.0,9.63e-05,2]
[405870884,1771375839996,-92673.16,9.632e-05,2]
[405870886,1771375840005,-166.66,9.664e-05,2]
[405870888,1771375840014,-1680.0,9.679e-05,2]
[405870890,1771375840023,-464.38268717,9.681e-05,3]
[405870892,1771375840032,-500.0,9.681e-05,3]
[405870894,1771375840041,-500.0,9.681e-05,3]
[405870896,1771375840051,-500.0,9.681e-05,3]
[405870897,1771375840060,-500.0,9.681e-05,3]
[405870900,1771375840070,-621.12228144,9.681e-05,3]
[405870901,1771375840079,-500.0,9.681e-05,3]
[405870903,1771375840088,-500.0,9.681e-05,3]
[405870905,1771375840097,-500.0,9.681e-05,3]
[405870907,1771375840106,-150.0,9.681e-05,3]
[405870908,1771375840115,-150.0,9.681e-05,3]
[405870909,1771375840124,-500.0,9.681e-05,3]
[405870910,1771375840134,-500.0,9.681e-05,3]
[405870911,1771375840143,-150.0,9.681e-05,3]
[405870912,1771375840153,-500.0,9.681e-05,3]
[405870913,1771375840162,-500.0,9.681e-05,3]
[405870914,1771375840172,-500.0,9.681e-05,3]
[405870915,1771375840182,-244.28993987,9.681e-05,3]
[405870916,1771375840192,-500.0,9.681e-05,3]
[405870917,1771375840201,-205.12968692,9.681e-05,3]
[405870918,1771375840211,-649.65624143,9.681e-05,3]